[Event "Titled Tuesday Blitz November 08 Late 2022"]
[White "Tokhirjonova, Gulrukhbegim"]
[Black "Vlassov, Nikolai"]
[WhiteFideId "14203626"]
[BlackFideId "4103360"]
[WhiteElo "2236"]
[BlackElo "2324"]
[Result "1-0"]
[Round "08"]
[TimeControl "180+1"]
[Date "2022.11.09"]
[WhiteClock "0:00:15"]
[BlackClock "0:00:01"]

1. e4 {[%clk 0:03:00]}  Nc6 {[%clk 0:02:59]} 2. Nf3 {[%clk 0:02:58]}  d5 {[%clk 0:02:59]} 3. exd5 {[%clk 0:02:58]}  Qxd5 {[%clk 0:03:00]} 4. Nc3 {[%clk 0:02:59]}  Qa5 {[%clk 0:02:59]} 5. h3 {[%clk 0:02:49]}  e5 {[%clk 0:02:53]} 6. Bb5 {[%clk 0:02:47]}  Bd7 {[%clk 0:02:53]} 7. d3 {[%clk 0:02:47]}  Bb4 {[%clk 0:02:47]} 8. Bc4 {[%clk 0:02:43]}  Nf6 {[%clk 0:02:42]} 9. Bd2 {[%clk 0:02:42]}  O-O-O {[%clk 0:02:31]} 10. O-O {[%clk 0:02:41]}  Nd4 {[%clk 0:02:10]} 11. Bxf7 {[%clk 0:02:34]}  Rhf8 {[%clk 0:02:03]} 12. Bc4 {[%clk 0:02:33]}  Bc6 {[%clk 0:01:48]} 13. Ng5 {[%clk 0:02:29]}  Rde8 {[%clk 0:01:27]} 14. a3 {[%clk 0:02:27]}  Bxc3 {[%clk 0:01:20]} 15. bxc3 {[%clk 0:02:24]}  Nb5 {[%clk 0:01:08]} 16. Be6+ {[%clk 0:02:20]}  Kb8 {[%clk 0:01:08]} 17. c4 {[%clk 0:02:20]}  Nc3 {[%clk 0:01:02]} 18. Qe1 {[%clk 0:02:20]}  e4 {[%clk 0:01:02]} 19. d4 {[%clk 0:01:30]}  h6 {[%clk 0:00:44]} 20. d5 {[%clk 0:01:29]}  hxg5 {[%clk 0:00:41]} 21. Bxc3 {[%clk 0:01:30]}  Qa4 {[%clk 0:00:38]} 22. Qe2 {[%clk 0:01:16]}  Bd7 {[%clk 0:00:33]} 23. Bxd7 {[%clk 0:01:03]}  Nxd7 {[%clk 0:00:33]} 24. Bxg7 {[%clk 0:01:00]}  Rg8 {[%clk 0:00:32]} 25. Bd4 {[%clk 0:01:00]}  Nb6 {[%clk 0:00:27]} 26. Bxb6 {[%clk 0:00:59]}  axb6 {[%clk 0:00:27]} 27. Rfd1 {[%clk 0:00:56]}  Qd7 {[%clk 0:00:25]} 28. Rd4 {[%clk 0:00:54]}  g4 {[%clk 0:00:24]} 29. h4 {[%clk 0:00:52]}  g3 {[%clk 0:00:24]} 30. fxg3 {[%clk 0:00:52]}  e3 {[%clk 0:00:22]} 31. g4 {[%clk 0:00:48]}  Rgf8 {[%clk 0:00:14]} 32. Rf1 {[%clk 0:00:47]}  Rxf1+ {[%clk 0:00:10]} 33. Kxf1 {[%clk 0:00:48]}  Qg7 {[%clk 0:00:07]} 34. c3 {[%clk 0:00:43]}  Qf6+ {[%clk 0:00:06]} 35. Kg1 {[%clk 0:00:34]}  Qxh4 {[%clk 0:00:06]} 36. Rd3 {[%clk 0:00:32]}  Qg3 {[%clk 0:00:06]} 37. a4 {[%clk 0:00:28]}  Ka7 {[%clk 0:00:05]} 38. a5 {[%clk 0:00:26]}  bxa5 {[%clk 0:00:05]} 39. c5 {[%clk 0:00:27]}  a4 {[%clk 0:00:05]} 40. d6 {[%clk 0:00:27]}  cxd6 {[%clk 0:00:05]} 41. cxd6 {[%clk 0:00:28]}  a3 {[%clk 0:00:05]} 42. d7 {[%clk 0:00:27]}  Rd8 {[%clk 0:00:04]} 43. Rxe3 {[%clk 0:00:25]}  Qd6 {[%clk 0:00:02]} 44. Rd3 {[%clk 0:00:23]}  Qc5+ {[%clk 0:00:02]} 45. Kh2 {[%clk 0:00:17]}  Qc7+ {[%clk 0:00:01]} 46. g3 {[%clk 0:00:16]}  Rxd7 {[%clk 0:00:01]} 47. Qf2+ {[%clk 0:00:16]}  b6 {[%clk 0:00:01]} 48. Rf3 {[%clk 0:00:15]} 1-0


[Site "https://www.chess.com"]

[Event "Titled Tuesday Blitz November 08 Late 2022"]
[White "Urazayev, Arystanbek"]
[Black "Leiva, Gianmarco"]
[WhiteFideId "13709810"]
[BlackFideId "3804399"]
[WhiteElo "2441"]
[BlackElo "2286"]
[Result "0-1"]
[Round "08"]
[TimeControl "180+1"]
[Date "2022.11.08"]
[WhiteClock "0:00:14"]
[BlackClock "0:00:55"]

1. e4 {[%clk 0:03:00]}  c5 {[%clk 0:03:00]} 2. Nf3 {[%clk 0:03:01]}  d6 {[%clk 0:03:00]} 3. d4 {[%clk 0:03:01]}  cxd4 {[%clk 0:03:01]} 4. Nxd4 {[%clk 0:03:02]}  Nf6 {[%clk 0:03:02]} 5. Nc3 {[%clk 0:03:02]}  a6 {[%clk 0:03:03]} 6. Rg1 {[%clk 0:03:03]}  e5 {[%clk 0:03:00]} 7. Nb3 {[%clk 0:03:03]}  h5 {[%clk 0:03:00]} 8. h3 {[%clk 0:03:03]}  Be6 {[%clk 0:02:56]} 9. g4 {[%clk 0:03:04]}  hxg4 {[%clk 0:02:57]} 10. hxg4 {[%clk 0:03:05]}  d5 {[%clk 0:02:57]} 11. exd5 {[%clk 0:03:05]}  Nxd5 {[%clk 0:02:58]} 12. Nxd5 {[%clk 0:03:06]}  Qxd5 {[%clk 0:02:58]} 13. Qxd5 {[%clk 0:03:06]}  Bxd5 {[%clk 0:02:59]} 14. Be3 {[%clk 0:03:07]}  Nc6 {[%clk 0:02:55]} 15. O-O-O {[%clk 0:03:07]}  O-O-O {[%clk 0:02:48]} 16. Bb6 {[%clk 0:03:07]}  Rd7 {[%clk 0:02:47]} 17. g5 {[%clk 0:02:59]}  Be7 {[%clk 0:02:02]} 18. Be2 {[%clk 0:02:56]}  Be6 {[%clk 0:01:54]} 19. Rxd7 {[%clk 0:02:56]}  Kxd7 {[%clk 0:01:52]} 20. Nc5+ {[%clk 0:02:55]}  Bxc5 {[%clk 0:01:52]} 21. Bxc5 {[%clk 0:02:56]}  Kc7 {[%clk 0:01:41]} 22. g6 {[%clk 0:02:47]}  b6 {[%clk 0:01:27]} 23. Ba3 {[%clk 0:02:26]}  f6 {[%clk 0:01:27]} 24. Bxa6 {[%clk 0:02:20]}  Bf5 {[%clk 0:01:24]} 25. c3 {[%clk 0:02:11]}  Nd8 {[%clk 0:01:19]} 26. Bc4 {[%clk 0:01:54]}  Ne6 {[%clk 0:01:19]} 27. Rd1 {[%clk 0:01:54]}  Nf4 {[%clk 0:01:16]} 28. Bd6+ {[%clk 0:01:48]}  Kb7 {[%clk 0:01:14]} 29. Bf7 {[%clk 0:01:38]}  Rh2 {[%clk 0:01:07]} 30. Rf1 {[%clk 0:01:00]}  Bd3 {[%clk 0:01:04]} 31. Re1 {[%clk 0:00:32]}  Rxf2 {[%clk 0:01:04]} 32. Bb3 {[%clk 0:00:32]}  Bxg6 {[%clk 0:01:04]} 33. Rh1 {[%clk 0:00:21]}  Nd3+ {[%clk 0:01:04]} 34. Kd1 {[%clk 0:00:21]}  Nxb2+ {[%clk 0:01:04]} 35. Ke1 {[%clk 0:00:22]}  Nd3+ {[%clk 0:01:05]} 36. Kd1 {[%clk 0:00:22]}  Be4 {[%clk 0:01:06]} 37. Rh3 {[%clk 0:00:20]}  Kc6 {[%clk 0:01:04]} 38. Bf8 {[%clk 0:00:16]}  g5 {[%clk 0:01:02]} 39. Bc4 {[%clk 0:00:14]}  Bf3+ {[%clk 0:00:53]} 40. Rxf3 {[%clk 0:00:14]}  Rxf3 {[%clk 0:00:54]} 41. Ke2 {[%clk 0:00:15]}  e4 {[%clk 0:00:55]} 42. Be6 {[%clk 0:00:14]}  Nf4+ {[%clk 0:00:55]} 0-1


[Site "https://www.chess.com"]

[Event "Titled Tuesday Blitz November 08 Late 2022"]
[White "Veiga, Jose Francisco R P Neves"]
[Black "Leitao, Rafael"]
[WhiteFideId "1930087"]
[BlackFideId "2101246"]
[WhiteElo "2320"]
[BlackElo "2609"]
[Result "1-0"]
[Round "08"]
[TimeControl "180+1"]
[Date "2022.11.09"]
[WhiteClock "0:00:04"]
[BlackClock "0:00:16"]

1. Nf3 {[%clk 0:02:18]}  Nf6 {[%clk 0:02:53]} 2. g3 {[%clk 0:02:16]}  d5 {[%clk 0:02:53]} 3. Bg2 {[%clk 0:02:17]}  c6 {[%clk 0:02:53]} 4. c4 {[%clk 0:02:16]}  Bf5 {[%clk 0:02:52]} 5. O-O {[%clk 0:02:16]}  e6 {[%clk 0:02:52]} 6. d3 {[%clk 0:02:14]}  Nbd7 {[%clk 0:02:47]} 7. b3 {[%clk 0:02:12]}  Be7 {[%clk 0:02:46]} 8. Bb2 {[%clk 0:02:12]}  O-O {[%clk 0:02:46]} 9. Nbd2 {[%clk 0:02:13]}  h6 {[%clk 0:02:46]} 10. Ne5 {[%clk 0:02:09]}  Nxe5 {[%clk 0:02:45]} 11. Bxe5 {[%clk 0:02:10]}  Nd7 {[%clk 0:02:45]} 12. Bc3 {[%clk 0:02:08]}  Bh7 {[%clk 0:02:44]} 13. e4 {[%clk 0:02:08]}  Nc5 {[%clk 0:02:27]} 14. Qe2 {[%clk 0:02:04]}  dxc4 {[%clk 0:02:18]} 15. dxc4 {[%clk 0:02:03]}  Qd3 {[%clk 0:02:15]} 16. Qxd3 {[%clk 0:02:03]}  Nxd3 {[%clk 0:02:16]} 17. Rad1 {[%clk 0:02:03]}  Rfd8 {[%clk 0:02:16]} 18. e5 {[%clk 0:01:16]}  Bb4 {[%clk 0:01:58]} 19. Bxb4 {[%clk 0:01:05]}  Nxb4 {[%clk 0:01:59]} 20. a3 {[%clk 0:01:01]}  Bc2 {[%clk 0:01:46]} 21. axb4 {[%clk 0:00:56]}  Bxd1 {[%clk 0:01:46]} 22. Rxd1 {[%clk 0:00:57]}  Rd4 {[%clk 0:01:43]} 23. Kf1 {[%clk 0:00:56]}  Rad8 {[%clk 0:01:40]} 24. Ke1 {[%clk 0:00:52]}  Rd3 {[%clk 0:01:34]} 25. Bf1 {[%clk 0:00:43]}  Rc3 {[%clk 0:01:32]} 26. c5 {[%clk 0:00:36]}  Rd4 {[%clk 0:01:23]} 27. Bc4 {[%clk 0:00:32]}  g5 {[%clk 0:01:18]} 28. Nb1 {[%clk 0:00:18]}  Re4+ {[%clk 0:01:08]} 29. Kd2 {[%clk 0:00:18]}  Rf3 {[%clk 0:01:08]} 30. Rf1 {[%clk 0:00:15]}  Rxe5 {[%clk 0:01:07]} 31. Nc3 {[%clk 0:00:14]}  Kg7 {[%clk 0:01:03]} 32. Be2 {[%clk 0:00:12]}  Rf6 {[%clk 0:01:03]} 33. f4 {[%clk 0:00:11]}  gxf4 {[%clk 0:00:59]} 34. gxf4 {[%clk 0:00:12]}  Ref5 {[%clk 0:00:56]} 35. Ne4 {[%clk 0:00:12]}  Rg6 {[%clk 0:00:57]} 36. Nd6 {[%clk 0:00:12]}  Rd5+ {[%clk 0:00:56]} 37. Kc3 {[%clk 0:00:12]}  b6 {[%clk 0:00:51]} 38. Bc4 {[%clk 0:00:11]}  Rh5 {[%clk 0:00:50]} 39. f5 {[%clk 0:00:11]}  Rh3+ {[%clk 0:00:49]} 40. Kb2 {[%clk 0:00:11]}  Rxh2+ {[%clk 0:00:49]} 41. Ka3 {[%clk 0:00:10]}  Rgg2 {[%clk 0:00:47]} 42. f6+ {[%clk 0:00:08]}  Kf8 {[%clk 0:00:44]} 43. Ra1 {[%clk 0:00:08]}  b5 {[%clk 0:00:43]} 44. Bd3 {[%clk 0:00:07]}  Rf2 {[%clk 0:00:34]} 45. Be4 {[%clk 0:00:07]}  Rh4 {[%clk 0:00:29]} 46. Bxc6 {[%clk 0:00:06]}  a5 {[%clk 0:00:30]} 47. bxa5 {[%clk 0:00:05]}  b4+ {[%clk 0:00:21]} 48. Ka4 {[%clk 0:00:05]}  Rc2 {[%clk 0:00:22]} 49. a6 {[%clk 0:00:05]}  Rhh2 {[%clk 0:00:19]} 50. Kxb4 {[%clk 0:00:03]}  Ra2 {[%clk 0:00:16]} 51. Rxa2 {[%clk 0:00:03]}  Rxa2 {[%clk 0:00:16]} 52. Ba4 {[%clk 0:00:04]} 1-0


[Site "https://www.chess.com"]

[Event "Titled Tuesday Blitz November 08 Late 2022"]
[White "Wan, Joseph"]
[Black "Winterberg, Lukas"]
[WhiteFideId "2069890"]
[BlackFideId "24622702"]
[WhiteElo "2200"]
[BlackElo "2349"]
[Result "0-1"]
[Round "08"]
[TimeControl "180+1"]
[Date "2022.11.09"]
[WhiteClock "0:00:05"]
[BlackClock "0:00:06"]

1. d4 {[%clk 0:03:00]}  Nf6 {[%clk 0:02:52]} 2. Bf4 {[%clk 0:02:59]}  d5 {[%clk 0:02:47]} 3. e3 {[%clk 0:02:58]}  c5 {[%clk 0:02:46]} 4. Nf3 {[%clk 0:02:58]}  Nc6 {[%clk 0:02:44]} 5. Nbd2 {[%clk 0:02:58]}  cxd4 {[%clk 0:02:41]} 6. exd4 {[%clk 0:02:59]}  Bf5 {[%clk 0:02:41]} 7. c3 {[%clk 0:02:59]}  e6 {[%clk 0:02:39]} 8. Qb3 {[%clk 0:02:58]}  Bd6 {[%clk 0:02:40]} 9. Bg3 {[%clk 0:02:51]}  O-O {[%clk 0:02:38]} 10. Be2 {[%clk 0:02:48]}  Ne4 {[%clk 0:02:34]} 11. Nxe4 {[%clk 0:02:45]}  Bxe4 {[%clk 0:02:35]} 12. Qxb7 {[%clk 0:02:38]}  Bxg3 {[%clk 0:02:22]} 13. hxg3 {[%clk 0:02:34]}  Qd6 {[%clk 0:02:22]} 14. Qa6 {[%clk 0:02:26]}  Rab8 {[%clk 0:02:19]} 15. b4 {[%clk 0:02:23]}  Rb6 {[%clk 0:02:11]} 16. Qa4 {[%clk 0:02:22]}  Rc8 {[%clk 0:02:11]} 17. Qb3 {[%clk 0:02:05]}  Ne7 {[%clk 0:01:56]} 18. O-O {[%clk 0:01:43]}  Rbc6 {[%clk 0:01:42]} 19. Rac1 {[%clk 0:01:40]}  Qc7 {[%clk 0:01:42]} 20. Qa3 {[%clk 0:01:33]}  Nf5 {[%clk 0:01:18]} 21. Ba6 {[%clk 0:01:17]}  Rb8 {[%clk 0:01:03]} 22. Ne5 {[%clk 0:01:17]}  Rcb6 {[%clk 0:00:28]} 23. f3 {[%clk 0:01:13]}  Nxg3 {[%clk 0:00:21]} 24. fxe4 {[%clk 0:01:12]}  Nxf1 {[%clk 0:00:20]} 25. Rxf1 {[%clk 0:01:02]}  f6 {[%clk 0:00:20]} 26. Nd3 {[%clk 0:00:54]}  dxe4 {[%clk 0:00:18]} 27. Nc5 {[%clk 0:00:54]}  Qc6 {[%clk 0:00:16]} 28. Bc4 {[%clk 0:00:51]}  Re8 {[%clk 0:00:15]} 29. Qxa7 {[%clk 0:00:40]}  Rbb8 {[%clk 0:00:14]} 30. Qd7 {[%clk 0:00:34]}  Qxd7 {[%clk 0:00:10]} 31. Nxd7 {[%clk 0:00:34]}  Ra8 {[%clk 0:00:08]} 32. Nc5 {[%clk 0:00:34]}  Kf7 {[%clk 0:00:07]} 33. Nxe4 {[%clk 0:00:34]}  Ke7 {[%clk 0:00:05]} 34. Nc5 {[%clk 0:00:34]}  Kd6 {[%clk 0:00:05]} 35. a4 {[%clk 0:00:33]}  e5 {[%clk 0:00:04]} 36. dxe5+ {[%clk 0:00:33]}  Rxe5 {[%clk 0:00:05]} 37. Rd1+ {[%clk 0:00:33]}  Ke7 {[%clk 0:00:05]} 38. Rd7+ {[%clk 0:00:33]}  Kf8 {[%clk 0:00:04]} 39. Ne6+ {[%clk 0:00:32]}  Ke8 {[%clk 0:00:05]} 40. Rxg7 {[%clk 0:00:30]}  Rxa4 {[%clk 0:00:04]} 41. Bb5+ {[%clk 0:00:29]}  Rxb5 {[%clk 0:00:03]} 42. Nc7+ {[%clk 0:00:28]}  Kf8 {[%clk 0:00:04]} 43. Nxb5 {[%clk 0:00:29]}  Kxg7 {[%clk 0:00:04]} 44. Kf2 {[%clk 0:00:20]}  f5 {[%clk 0:00:05]} 45. Kf3 {[%clk 0:00:19]}  Kf6 {[%clk 0:00:06]} 46. Kf4 {[%clk 0:00:19]}  Ra2 {[%clk 0:00:05]} 47. g3 {[%clk 0:00:19]}  Rf2+ {[%clk 0:00:04]} 48. Ke3 {[%clk 0:00:19]}  Rb2 {[%clk 0:00:05]} 49. Nd4 {[%clk 0:00:18]}  Ke5 {[%clk 0:00:05]} 50. Nf3+ {[%clk 0:00:17]}  Kd5 {[%clk 0:00:05]} 51. Kd3 {[%clk 0:00:14]}  h5 {[%clk 0:00:04]} 52. Nd4 {[%clk 0:00:10]}  Ke5 {[%clk 0:00:02]} 53. Nf3+ {[%clk 0:00:09]}  Kf6 {[%clk 0:00:02]} 54. Kc4 {[%clk 0:00:06]}  Rg2 {[%clk 0:00:02]} 55. b5 {[%clk 0:00:06]}  Rxg3 {[%clk 0:00:03]} 56. Nd4 {[%clk 0:00:07]}  h4 {[%clk 0:00:03]} 57. b6 {[%clk 0:00:07]}  h3 {[%clk 0:00:03]} 58. b7 {[%clk 0:00:07]}  Rg8 {[%clk 0:00:04]} 59. Nf3 {[%clk 0:00:05]}  f4 {[%clk 0:00:04]} 60. Kc5 {[%clk 0:00:05]}  Kf5 {[%clk 0:00:05]} 61. Kc6 {[%clk 0:00:05]}  Kg4 {[%clk 0:00:04]} 62. Nh2+ {[%clk 0:00:02]}  Kg3 {[%clk 0:00:05]} 63. Nf1+ {[%clk 0:00:03]}  Kg2 {[%clk 0:00:05]} 64. Nd2 {[%clk 0:00:02]}  h2 {[%clk 0:00:05]} 65. Kc7 {[%clk 0:00:03]}  h1=Q {[%clk 0:00:05]} 66. Ne4 {[%clk 0:00:04]}  Rg7+ {[%clk 0:00:05]} 67. Kc8 {[%clk 0:00:04]}  Rxb7 {[%clk 0:00:06]} 68. Kxb7 {[%clk 0:00:05]}  Qc1 {[%clk 0:00:06]} 0-1


[Site "https://www.chess.com"]

[Event "Titled Tuesday Blitz November 08 Late 2022"]
[White "Wartiovaara, Oliver"]
[Black "Da Matta, Eduardo Cesar"]
[WhiteFideId "513024"]
[BlackFideId "2193108"]
[WhiteElo "2213"]
[BlackElo "1981"]
[Result "1-0"]
[Round "08"]
[TimeControl "180+1"]
[Date "2022.11.09"]
[WhiteClock "0:00:46"]
[BlackClock "0:00:53"]

1. d4 {[%clk 0:03:00]}  d5 {[%clk 0:02:59]} 2. c4 {[%clk 0:02:57]}  c6 {[%clk 0:02:59]} 3. Nf3 {[%clk 0:02:57]}  Nf6 {[%clk 0:03:00]} 4. e3 {[%clk 0:02:57]}  e6 {[%clk 0:02:58]} 5. b3 {[%clk 0:02:57]}  Bd6 {[%clk 0:02:58]} 6. Bb2 {[%clk 0:02:57]}  Nbd7 {[%clk 0:02:58]} 7. Nbd2 {[%clk 0:02:58]}  O-O {[%clk 0:02:59]} 8. Bd3 {[%clk 0:02:55]}  Qe7 {[%clk 0:02:54]} 9. O-O {[%clk 0:02:54]}  b6 {[%clk 0:02:53]} 10. Qe2 {[%clk 0:02:53]}  Bb7 {[%clk 0:02:48]} 11. e4 {[%clk 0:02:53]}  dxe4 {[%clk 0:02:48]} 12. Nxe4 {[%clk 0:02:54]}  Nxe4 {[%clk 0:02:46]} 13. Qxe4 {[%clk 0:02:54]}  Nf6 {[%clk 0:02:44]} 14. Qh4 {[%clk 0:02:54]}  h6 {[%clk 0:02:38]} 15. Rfe1 {[%clk 0:02:50]}  Rad8 {[%clk 0:02:09]} 16. Ne5 {[%clk 0:02:30]}  c5 {[%clk 0:01:52]} 17. d5 {[%clk 0:02:29]}  Rfe8 {[%clk 0:01:37]} 18. Ng4 {[%clk 0:01:38]}  Nxd5 {[%clk 0:01:27]} 19. Nxh6+ {[%clk 0:01:25]}  Kf8 {[%clk 0:01:26]} 20. Qh3 {[%clk 0:01:04]}  Nf4 {[%clk 0:01:24]} 21. Qg4 {[%clk 0:00:55]}  f5 {[%clk 0:01:00]} 22. Bxf5 {[%clk 0:00:47]}  exf5 {[%clk 0:01:01]} 23. Qxf5+ {[%clk 0:00:47]}  Qf6 {[%clk 0:00:53]} 24. Bxf6 {[%clk 0:00:46]} 1-0


[Site "https://www.chess.com"]

[Event "Titled Tuesday Blitz November 08 Late 2022"]
[White "Xiong, Jeffery"]
[Black "Andreikin, Dmitry"]
[WhiteFideId "2047640"]
[BlackFideId "4158814"]
[WhiteElo "2725"]
[BlackElo "2736"]
[Result "1-0"]
[Round "08"]
[TimeControl "180+1"]
[Date "2022.11.08"]
[WhiteClock "0:01:08"]
[BlackClock "0:00:33"]

1. e4 {[%clk 0:03:00]}  e5 {[%clk 0:02:56]} 2. Nf3 {[%clk 0:03:01]}  Nc6 {[%clk 0:02:56]} 3. Nc3 {[%clk 0:03:01]}  Nf6 {[%clk 0:02:56]} 4. d4 {[%clk 0:03:02]}  exd4 {[%clk 0:02:56]} 5. Nxd4 {[%clk 0:03:02]}  Bb4 {[%clk 0:02:57]} 6. Nxc6 {[%clk 0:03:03]}  bxc6 {[%clk 0:02:57]} 7. Bd3 {[%clk 0:03:04]}  O-O {[%clk 0:02:57]} 8. O-O {[%clk 0:03:04]}  d5 {[%clk 0:02:58]} 9. exd5 {[%clk 0:03:05]}  cxd5 {[%clk 0:02:59]} 10. h3 {[%clk 0:03:05]}  c6 {[%clk 0:02:57]} 11. Qf3 {[%clk 0:03:06]}  Re8 {[%clk 0:02:55]} 12. Bf4 {[%clk 0:03:04]}  Be6 {[%clk 0:02:49]} 13. Ne2 {[%clk 0:03:00]}  Bd6 {[%clk 0:02:41]} 14. Rfd1 {[%clk 0:02:58]}  Rb8 {[%clk 0:02:40]} 15. b3 {[%clk 0:02:58]}  h6 {[%clk 0:02:34]} 16. c4 {[%clk 0:02:58]}  Qc7 {[%clk 0:02:25]} 17. Rac1 {[%clk 0:02:51]}  Rbd8 {[%clk 0:02:12]} 18. Bxd6 {[%clk 0:02:34]}  Qxd6 {[%clk 0:02:13]} 19. c5 {[%clk 0:02:35]}  Qe5 {[%clk 0:02:10]} 20. Nd4 {[%clk 0:02:33]}  Bd7 {[%clk 0:02:09]} 21. b4 {[%clk 0:02:20]}  Ne4 {[%clk 0:02:09]} 22. Bxe4 {[%clk 0:02:12]}  dxe4 {[%clk 0:02:10]} 23. Qe3 {[%clk 0:02:13]}  f5 {[%clk 0:02:10]} 24. f4 {[%clk 0:02:06]}  Qf6 {[%clk 0:01:52]} 25. a4 {[%clk 0:01:57]}  a6 {[%clk 0:01:50]} 26. b5 {[%clk 0:01:48]}  axb5 {[%clk 0:01:49]} 27. axb5 {[%clk 0:01:48]}  cxb5 {[%clk 0:01:44]} 28. c6 {[%clk 0:01:49]}  Bc8 {[%clk 0:01:16]} 29. c7 {[%clk 0:01:43]}  Rd5 {[%clk 0:01:09]} 30. Qb3 {[%clk 0:01:42]}  Qf7 {[%clk 0:01:09]} 31. Nxb5 {[%clk 0:01:42]}  Rxd1+ {[%clk 0:00:50]} 32. Qxd1 {[%clk 0:01:42]}  e3 {[%clk 0:00:50]} 33. Nd6 {[%clk 0:01:41]}  Qa2 {[%clk 0:00:46]} 34. Nxe8 {[%clk 0:01:26]}  Qf2+ {[%clk 0:00:34]} 35. Kh1 {[%clk 0:01:14]}  Bb7 {[%clk 0:00:33]} 36. Nf6+ {[%clk 0:01:14]}  Kf7 {[%clk 0:00:33]} 37. Qb3+ {[%clk 0:01:08]} 1-0


[Site "https://www.chess.com"]

[Event "Titled Tuesday Blitz November 08 Late 2022"]
[White "Young, Ryan"]
[Black "Bilan, Danila"]
[WhiteFideId "2049945"]
[BlackFideId "24161918"]
[WhiteElo "2285"]
[BlackElo "2173"]
[Result "1/2-1/2"]
[Round "08"]
[TimeControl "180+1"]
[Date "2022.11.09"]
[WhiteClock "0:00:10"]
[BlackClock "0:00:08"]

1. e4 {[%clk 0:03:00]}  c6 {[%clk 0:02:44]} 2. d4 {[%clk 0:03:00]}  d5 {[%clk 0:02:45]} 3. exd5 {[%clk 0:03:01]}  cxd5 {[%clk 0:02:46]} 4. Bd3 {[%clk 0:03:00]}  Nc6 {[%clk 0:02:45]} 5. c3 {[%clk 0:03:01]}  Qc7 {[%clk 0:02:46]} 6. h3 {[%clk 0:02:58]}  g6 {[%clk 0:02:44]} 7. Nf3 {[%clk 0:02:57]}  Bf5 {[%clk 0:02:44]} 8. Be2 {[%clk 0:02:53]}  Nf6 {[%clk 0:02:44]} 9. O-O {[%clk 0:02:53]}  Bg7 {[%clk 0:02:44]} 10. Bg5 {[%clk 0:02:49]}  Ne4 {[%clk 0:02:43]} 11. Be3 {[%clk 0:02:44]}  O-O {[%clk 0:02:41]} 12. Nbd2 {[%clk 0:02:45]}  Rad8 {[%clk 0:02:41]} 13. Nxe4 {[%clk 0:02:44]}  dxe4 {[%clk 0:02:41]} 14. Nd2 {[%clk 0:02:39]}  e5 {[%clk 0:02:39]} 15. dxe5 {[%clk 0:02:39]}  Nxe5 {[%clk 0:02:37]} 16. Qb3 {[%clk 0:02:25]}  b6 {[%clk 0:02:20]} 17. a4 {[%clk 0:02:19]}  Be6 {[%clk 0:02:12]} 18. Qa3 {[%clk 0:02:13]}  f5 {[%clk 0:02:08]} 19. Bd4 {[%clk 0:01:56]}  Bd5 {[%clk 0:01:13]} 20. a5 {[%clk 0:01:27]}  f4 {[%clk 0:00:51]} 21. axb6 {[%clk 0:01:26]}  axb6 {[%clk 0:00:52]} 22. Qa7 {[%clk 0:01:21]}  Qxa7 {[%clk 0:00:41]} 23. Rxa7 {[%clk 0:01:21]}  Bf6 {[%clk 0:00:35]} 24. b4 {[%clk 0:01:04]}  Nc6 {[%clk 0:00:17]} 25. Ra6 {[%clk 0:00:56]}  Bxd4 {[%clk 0:00:11]} 26. cxd4 {[%clk 0:00:51]}  Nxd4 {[%clk 0:00:11]} 27. Bc4 {[%clk 0:00:51]}  Bxc4 {[%clk 0:00:10]} 28. Nxc4 {[%clk 0:00:52]}  b5 {[%clk 0:00:10]} 29. Ne5 {[%clk 0:00:49]}  e3 {[%clk 0:00:09]} 30. fxe3 {[%clk 0:00:40]}  fxe3 {[%clk 0:00:10]} 31. Re1 {[%clk 0:00:39]}  Rde8 {[%clk 0:00:09]} 32. Nd3 {[%clk 0:00:20]}  e2 {[%clk 0:00:09]} 33. Ra2 {[%clk 0:00:20]}  Re3 {[%clk 0:00:09]} 34. Rd2 {[%clk 0:00:18]}  Rfe8 {[%clk 0:00:08]} 35. Nf4 {[%clk 0:00:15]}  Nf5 {[%clk 0:00:04]} 36. Rdxe2 {[%clk 0:00:13]}  Rxe2 {[%clk 0:00:03]} 37. Rxe2 {[%clk 0:00:14]}  Rxe2 {[%clk 0:00:02]} 38. Nxe2 {[%clk 0:00:15]}  Kf7 {[%clk 0:00:03]} 39. Nc3 {[%clk 0:00:15]}  Ne3 {[%clk 0:00:02]} 40. Nxb5 {[%clk 0:00:14]}  Nc2 {[%clk 0:00:03]} 41. Nd6+ {[%clk 0:00:12]}  Ke6 {[%clk 0:00:03]} 42. Ne4 {[%clk 0:00:12]}  Nxb4 {[%clk 0:00:04]} 43. Ng5+ {[%clk 0:00:13]}  Kf6 {[%clk 0:00:04]} 44. Nxh7+ {[%clk 0:00:14]}  Kg7 {[%clk 0:00:05]} 45. Ng5 {[%clk 0:00:14]}  Kf6 {[%clk 0:00:06]} 46. Nf3 {[%clk 0:00:15]}  Nd3 {[%clk 0:00:06]} 47. Kh2 {[%clk 0:00:15]}  Kf5 {[%clk 0:00:06]} 48. Kg3 {[%clk 0:00:15]}  Nf4 {[%clk 0:00:05]} 49. Nd4+ {[%clk 0:00:15]}  Ke4 {[%clk 0:00:06]} 50. Nf3 {[%clk 0:00:15]}  Ne2+ {[%clk 0:00:06]} 51. Kf2 {[%clk 0:00:15]}  Nf4 {[%clk 0:00:06]} 52. Nh4 {[%clk 0:00:15]}  g5 {[%clk 0:00:05]} 53. Nf3 {[%clk 0:00:16]}  Kf5 {[%clk 0:00:06]} 54. Kg3 {[%clk 0:00:16]}  Nh5+ {[%clk 0:00:06]} 55. Kf2 {[%clk 0:00:16]}  Nf4 {[%clk 0:00:07]} 56. Nd4+ {[%clk 0:00:16]}  Ke4 {[%clk 0:00:07]} 57. Ne2 {[%clk 0:00:17]}  Nh5 {[%clk 0:00:06]} 58. g3 {[%clk 0:00:16]}  Nf6 {[%clk 0:00:06]} 59. Nc3+ {[%clk 0:00:16]}  Kf5 {[%clk 0:00:07]} 60. Kf3 {[%clk 0:00:16]}  g4+ {[%clk 0:00:07]} 61. hxg4+ {[%clk 0:00:15]}  Nxg4 {[%clk 0:00:08]} 62. Nd5 {[%clk 0:00:14]}  Ne5+ {[%clk 0:00:08]} 63. Ke3 {[%clk 0:00:14]}  Kg4 {[%clk 0:00:09]} 64. Nf6+ {[%clk 0:00:10]}  Kxg3 {[%clk 0:00:08]} 1/2-1/2


[Site "https://www.chess.com"]